fUST/lending_fUST_20250228
["ID","MTS","AMOUNT","RATE_DAILY","PERIOD"]
[354807634,1740710973952,-500.0,0.00058078,120]
[354807635,1740710973979,-500.0,0.00058078,120]
[354807636,1740710974007,-500.0,0.00058078,120]
[354807637,1740710974036,-965.66,0.00058078,120]
[354807638,1740710974063,-500.94,0.00058078,120]
[354807639,1740710974092,-512.94621603,0.00058078,21]
[354807640,1740710974123,-500.0,0.00058078,2]
[354807641,1740710974151,-1594.31,0.00058078,120]
[354807642,1740710974179,-500.0,0.00058078,120]
[354807643,1740710974205,-509.81340826,0.00058078,120]
[354807644,1740710974230,-500.0,0.00058078,120]
[354807645,1740710974260,-500.0,0.00058078,120]
[354807646,1740710974286,-500.0,0.00058078,120]
[354807647,1740710974311,-500.0,0.00058078,120]
[354807648,1740710974334,-500.0,0.00058078,120]
[354807649,1740710974360,-500.0,0.00058078,120]
[354807650,1740710974382,-578.16,0.00058078,120]
[354807651,1740710974406,-505.8478323,0.00058078,120]
[354807652,1740710974429,-500.0,0.00058078,120]
[354807653,1740710974452,-3731.13,0.00058078,120]
[354807654,1740710974474,-500.0,0.00058078,120]
[354807655,1740710974496,-509.21192805,0.00058078,120]
[354807656,1740710974517,-272.69304006,0.00058078,120]
[354807657,1740710974539,-500.0,0.00058078,120]
[354807658,1740710974560,-500.0,0.00058078,120]
[354807659,1740710974583,-1347.27,0.00058078,120]
[354807660,1740710974608,-1371.64,0.00058078,120]
[354807661,1740710974631,-500.0,0.00058078,120]
[354807662,1740710974654,-3093.38,0.00058078,120]
[354807663,1740710974676,-745.08,0.00058078,120]
[354807664,1740710974701,-500.0,0.00058078,120]
[354807665,1740710974724,-500.0,0.00058078,120]
[354807666,1740710974747,-500.0,0.00058078,120]
[354807667,1740710974770,-500.0,0.00058078,120]
[354807668,1740710974795,-1141.61,0.00058078,120]
[354807669,1740710974817,-500.0,0.00058078,120]
[354807670,1740710974838,-585.52,0.00058078,120]
[354807671,1740710974863,-500.0,0.00058078,120]
[354807672,1740710974887,-500.0,0.00058078,120]
[354807673,1740710974910,-500.0,0.00058078,120]
[354807674,1740710974932,-372.66,0.00058078,120]
[354807675,1740710974955,-2121.8,0.00058078,120]
[354807676,1740710974975,-500.0,0.00058078,120]
[354807677,1740710974997,-799.49,0.00058078,120]
[354807678,1740710975018,-302.59,0.00058078,120]
[354807679,1740710975053,-630.51,0.00058078,120]
[354807680,1740710975078,-500.0,0.00058078,120]
[354807681,1740710975101,-1492.81,0.00058078,120]
[354807682,1740710975126,-762.94,0.00058078,120]
[354807683,1740710975148,-500.0,0.00058078,120]
[354807684,1740710975170,-500.0,0.00058078,120]
[354807685,1740710975323,-170.61,0.00058078,120]
[354807686,1740710975344,-500.0,0.00058078,120]
[354807687,1740710975367,-500.0,0.00058078,120]
[354807688,1740710975389,-552.62,0.00058078,120]
[354807689,1740710975411,-500.0,0.00058078,120]
[354807690,1740710975433,-535.88,0.00058079,120]
[354807691,1740710975454,-500.0,0.00058079,120]
[354807692,1740710975476,-500.0,0.00058079,120]
[354807693,1740710975497,-500.0,0.00058079,120]
[354807694,1740710975518,-240.91,0.00058079,120]
[354807695,1740710975538,-500.0,0.00058079,120]
[354807696,1740710975559,-500.0,0.00058079,120]
[354807697,1740710975579,-500.0,0.00058079,120]
[354807698,1740710975599,-500.0,0.00058079,120]
[354807699,1740710975623,-500.0,0.00058079,120]
[354807700,1740710975643,-500.0,0.00058079,120]
[354807701,1740710975667,-619.7,0.00058079,120]
[354807702,1740710975688,-522.59,0.00058079,120]
[354807703,1740710975715,-500.0,0.00058079,120]
[354807704,1740710975736,-500.0,0.00058079,120]
[354807705,1740710975760,-500.0,0.00058079,120]
[354807706,1740710975784,-6834.02,0.00058079,120]
[354807707,1740710975806,-16516.64,0.00058079,7]
[354807708,1740710975828,-500.0,0.00058079,120]
[354807709,1740710975850,-1108.93,0.00058079,120]
[354807710,1740710975876,-500.0,0.00058079,120]
[354807711,1740710975899,-500.0,0.00058079,120]
[354807712,1740710975922,-500.0,0.00058079,120]
[354807713,1740710975944,-500.0,0.00058079,120]
[354807714,1740710975966,-500.0,0.00058079,120]
[354807715,1740710975987,-500.0,0.00058079,120]
[354807716,1740710976009,-702.01,0.00058079,120]
[354807717,1740710976032,-500.0,0.00058079,120]
[354807718,1740710976055,-525.71,0.00058079,120]
[354807719,1740710976076,-500.0,0.00058079,45]
[354807720,1740710976100,-3780.72,0.00058079,120]
[354807721,1740710976124,-507.63434419,0.00058079,120]
[354807722,1740710976148,-500.0,0.00058079,120]
[354807723,1740710976172,-3816.17,0.00058079,120]
[354807724,1740710976194,-500.0,0.00058079,120]
[354807725,1740710976216,-500.0,0.00058079,120]
[354807726,1740710976238,-500.0,0.00058079,120]
[354807727,1740710976260,-28125.23,0.00058079,7]
[354807728,1740710976282,-2308.32,0.00058079,120]
[354807729,1740710976303,-684.28,0.00058079,120]
[354807730,1740710976324,-500.0,0.00058079,120]
[354807731,1740710976352,-500.0,0.00058079,120]
[354807732,1740710976377,-500.0,0.00058079,120]
[354807733,1740710976398,-500.0,0.0005808,120]
[354807734,1740710976419,-541.54,0.0005808,120]
[354807735,1740710976443,-500.0,0.0005808,120]
[354807736,1740710976465,-500.0,0.0005808,120]
[354807737,1740710976487,-500.0,0.0005808,120]
[354807738,1740710976508,-229.97,0.0005808,120]
[354807739,1740710976530,-500.0,0.0005808,120]
[354807740,1740710976552,-500.0,0.0005808,120]
[354807741,1740710976572,-500.0,0.0005808,120]
[354807742,1740710976593,-197.07,0.0005808,120]
[354807743,1740710976616,-500.0,0.0005808,120]
[354807744,1740710976636,-260.77,0.0005808,120]
[354807745,1740710976661,-378.8,0.0005808,120]
[354807746,1740710976684,-500.0,0.0005808,120]
[354807747,1740710976708,-507.96977579,0.0005808,120]
[354807748,1740710976729,-516.05771748,0.0005808,120]
[354807749,1740710976751,-394.39,0.0005808,120]
[354807750,1740710976772,-463.03487807,0.0005808,120]
[354807751,1740710976795,-500.0,0.0005808,120]
[354807752,1740710976816,-404.90473599,0.0005808,120]
[354807753,1740710976837,-500.0,0.0005808,120]
[354807754,1740710976860,-508.53167102,0.0005808,120]
[354807755,1740710976881,-500.0,0.0005808,120]
[354807756,1740710976904,-508.04907697,0.0005808,120]
[354807757,1740710976925,-221.08,0.0005808,120]
[354807758,1740710976950,-500.0,0.0005808,120]
[354807759,1740710976972,-532.35,0.0005808,120]
[354807760,1740710976994,-481.9,0.0005808,120]
[354807761,1740710977016,-500.0,0.0005808,120]
[354807762,1740710977038,-227.2,0.0005808,2]
[354807763,1740710977061,-363.26,0.0005808,120]
[354807764,1740710977085,-344.46,0.0005808,120]
[354807765,1740710977107,-194.57,0.0005808,120]
[354807766,1740710977129,-364.99,0.0005808,120]
[354807767,1740710977150,-500.0,0.0005808,120]
[354807768,1740710977171,-231.12,0.0005808,120]
[354807769,1740710977192,-500.0,0.0005808,120]
[354807770,1740710977214,-500.0,0.0005808,120]
[354807771,1740710977317,-500.0,0.0005808,120]
[354807772,1740710977339,-500.0,0.0005808,120]
[354807773,1740710977364,-259.45,0.0005808,120]
[354807774,1740710977385,-511.39898773,0.0005808,120]
[354807775,1740710977405,-500.0,0.0005808,120]
[354807776,1740710977426,-500.0,0.0005808,120]
[354807777,1740710977447,-500.0,0.0005808,120]
[354807778,1740710977468,-500.0,0.0005808,120]
[354807779,1740710977488,-500.0,0.0005808,120]
[354807780,1740710977509,-500.0,0.0005808,120]
[354807781,1740710977530,-500.0,0.0005808,120]
[354807782,1740710977550,-244.61,0.0005808,120]
[354807783,1740710977571,-3354.16,0.0005808,120]
[354807784,1740710977592,-500.0,0.0005808,120]
[354807785,1740710977614,-500.0,0.0005808,120]
[354807786,1740710977634,-500.0,0.0005808,120]
[354807787,1740710977658,-505.67055328,0.0005808,120]
[354807788,1740710977677,-645.22,0.00058082,80]
[354807789,1740710977701,-554.0,0.0005822,15]
[354807790,1740710977722,-158.0,0.000586,120]
[354807791,1740710977747,-405.4,0.000586,30]
[354807792,1740710977767,-645.22,0.0005863,85]
[354807793,1740710977789,-505.44266689,0.000587,120]
[354807794,1740710977811,-64468.83,0.000589,30]
[354807795,1740710977832,-28409.86507851,0.00059,30]
[354807796,1740710977854,-274.0,0.00059,120]
[354807797,1740710977877,-165.0,0.00059,120]
[354807798,1740710977898,-1173.55037,0.00059,120]
[354807799,1740710977918,-645.22,0.00059178,90]
[354807800,1740710977939,-151.0,0.000593,23]
[354807801,1740710977960,-645.22,0.00059726,95]
[354807802,1740710977982,-3597.63187509,0.000599,120]
[354807803,1740710978004,-300.0,0.0006,120]
[354807804,1740710978026,-2114.29,0.0006,120]
[354807805,1740710978047,-1301.74675174,0.0006,120]
[354807806,1740710978068,-31072.58128818,0.0006,120]
[354807807,1740710978088,-189.34487163,0.0006,120]
[354807808,1740710978111,-29126.97550789,0.0006,120]
[354807809,1740710978131,-1000.0,0.0006,120]
[354807810,1740710978152,-81678.5829,0.0006,120]
[354807811,1740710978174,-849.43,0.000601,2]
[354807812,1740710978196,-645.22,0.00060273,100]
[354807813,1740710978220,-500.0,0.00060273,120]
[354807814,1740710978243,-1220.83,0.00060273,120]
[354807815,1740710978263,-182.0,0.000604,120]
[354807816,1740710978285,-1624.99,0.00060719,120]
[354807817,1740710978306,-560.65,0.00060719,120]
[354807818,1740710978327,-200.0,0.0006074,113]
[354807819,1740710978348,-38489.24518124,0.00060753,30]
[354807820,1740710978372,-1000.0,0.000608,120]
[354807821,1740710978392,-227.9982558,0.00060817,120]
[354807822,1740710978413,-500.0,0.00060817,120]
[354807823,1740710978433,-1916.66,0.00060817,120]
[354807824,1740710978453,-500.0,0.00060817,120]
[354807825,1740710978474,-354.38,0.00060817,120]
[354807826,1740710978495,-965.66,0.00060817,120]
[354807827,1740710978516,-500.0,0.00060817,2]
[354807828,1740710978537,-1594.31,0.00060817,120]
[354807829,1740710978558,-500.0,0.00060817,120]
[354807830,1740710978579,-500.0,0.00060817,120]
[354807831,1740710978603,-500.0,0.00060817,120]
[354807832,1740710978628,-500.0,0.00060817,120]
[354807833,1740710978651,-3731.13,0.00060817,120]
[354807834,1740710978675,-500.0,0.00060817,120]
[354807835,1740710978699,-1347.27,0.00060817,120]
[354807836,1740710978721,-1371.64,0.00060817,120]
[354807837,1740710978743,-3093.38,0.00060817,120]
[354807838,1740710978763,-745.08,0.00060817,120]
[354807839,1740710978787,-500.0,0.00060817,120]
[354807840,1740710978809,-193.54,0.00060817,120]
[354807841,1740710978833,-500.0,0.00060817,120]
[354807842,1740710978856,-1141.61,0.00060817,120]
[354807843,1740710978880,-585.52,0.00060817,120]
[354807844,1740710978902,-594.52427144,0.00060817,120]
[354807845,1740710978924,-584.50322996,0.00060817,120]
[354807846,1740710978946,-500.0,0.00060817,120]
[354807847,1740710978967,-500.0,0.00060817,120]
[354807848,1740710978990,-2121.8,0.00060817,120]
[354807849,1740710979012,-799.49,0.00060817,120]
[354807850,1740710979034,-500.0,0.00060817,120]
[354807851,1740710979055,-1492.81,0.00060817,120]
[354807852,1740710979076,-762.94,0.00060817,120]
[354807853,1740710979166,-500.0,0.00060817,120]
[354807854,1740710979203,-500.0,0.00060817,120]
[354807855,1740710979225,-433.8018916,0.00060817,120]
[354807856,1740710997332,200.0,0.00052534,2]
[354807950,1740711036482,-7624.21197753,0.00052535,2]
[354807952,1740711036492,-536.34481416,0.00052535,3]
[354807953,1740711036502,-5382.19784876,0.00052535,10]
[354807955,1740711036513,-429.0,0.00052535,10]
[354807959,1740711037275,-9636.65999999,0.00052535,10]
[354807960,1740711037288,-1295.76916823,0.00052535,10]
[354807961,1740711037363,-18381.63664169,0.00052535,10]
[354807962,1740711037375,-2155.0,0.00052535,10]
[354807963,1740711037390,-4698.28568748,0.00052535,10]
[354807964,1740711037399,-256.257222,0.00052535,10]
[354807965,1740711037410,-3264.74,0.00054794,120]
[354807966,1740711037420,-1178.86,0.00054794,120]
[354807967,1740711037430,-1395.02,0.00055239,120]
[354807968,1740711037440,-500.0,0.00055239,120]
[354807969,1740711037450,-404.40301307,0.00055239,120]
[354807970,1740711037460,-5503.07,0.00055239,120]
[354807971,1740711037469,-725.19,0.00055338,120]
[354807972,1740711037479,-500.0,0.00055338,120]
[354807973,1740711037489,-510.90696296,0.00055338,120]
[354807974,1740711037499,-500.0,0.00055338,120]
[354807975,1740711037508,-500.0,0.00055338,120]
[354807976,1740711037518,-499.89784337,0.00055338,120]
[354807977,1740711037528,-500.0,0.00055338,120]
[354807978,1740711037538,-506.76558657,0.00055338,120]
[354807979,1740711037547,-511.25798417,0.00055338,120]
[354807980,1740711037556,-639.06,0.00055338,120]
[354807981,1740711037565,-500.0,0.00055338,120]
[354807982,1740711037575,-511.07514428,0.00055338,120]
[354807983,1740711037584,-6264.52,0.00055338,120]
[354807984,1740711037593,-500.0,0.00055338,120]
[354807985,1740711037602,-9630.6905561,0.00055338,7]
[354807986,1740711037614,-4151.10583087,0.00055338,7]
[354807987,1740711037626,-260.76768147,0.00055338,7]
[354807988,1740711037638,-1097.68593156,0.00055338,7]
[354807989,1740711037647,-1016.52,0.00055338,120]
[354807990,1740711037660,-383.57,0.00055338,120]
[354807991,1740711037669,-500.0,0.00055338,120]
[354807995,1740711037760,-500.0,0.00055338,120]
[354807998,1740711037771,-500.0,0.00055338,120]
[354807999,1740711037781,-500.0,0.00055338,120]
[354808000,1740711037791,-500.0,0.00055338,120]
[354808001,1740711037800,-577.62195658,0.00055338,120]
[354808002,1740711037809,-500.0,0.00055338,120]
[354808003,1740711037819,-500.0,0.00055338,120]
[354808004,1740711037829,-500.0,0.00055339,120]
[354808005,1740711037839,-502.57186386,0.00055339,120]
[354808006,1740711037848,-538.87354975,0.00055339,120]
[354808007,1740711037858,-502.1346913,0.00055339,120]
[354808009,1740711037867,-510.12163825,0.00055373,15]
[354808010,1740711037878,-3264.74,0.00057534,120]
[354808013,1740711037887,-875.51783807,0.00057534,120]
[354808014,1740711037899,-303.34216193,0.00057534,120]
[354808015,1740711037911,-154.27,0.00057969,30]
[354808017,1740711037920,-479.43314872,0.00057979,120]
[354808019,1740711037936,-915.58685128,0.00057979,120]
[354808022,1740711037945,-500.0,0.00057979,120]
[354808024,1740711037955,-185.13,0.00058058,30]
[354808026,1740711037964,-4541.39,0.00058058,10]
[354808027,1740711037973,-383.88,0.00058068,30]
[354808028,1740711037982,-5449.67,0.00058068,10]
[354808030,1740711037991,-501.07110975,0.00058073,10]
[354808031,1740711038001,-500.0,0.00058073,14]
[354808032,1740711038011,-503.97751882,0.00058073,14]
[354808033,1740711038020,-500.0,0.00058073,14]
[354808034,1740711038030,-725.19,0.00058078,120]
[354808035,1740711038039,-500.0,0.00058078,120]
[354808036,1740711038048,-536.71,0.00058078,120]
[354808037,1740711038057,-500.0,0.00058078,120]
[354808038,1740711038066,-209.72,0.00058078,120]
[354808039,1740711038075,-6264.52,0.00058078,120]
[354808040,1740711038084,-500.0,0.00058078,120]
[354808041,1740711038093,-15140.25,0.00058078,7]
[354808042,1740711038103,-1016.52,0.00058078,120]
[354808043,1740711038112,-500.0,0.00058078,120]
[354808044,1740711038122,-378.22,0.00058078,120]
[354808045,1740711038132,-500.0,0.00058078,120]
[354808046,1740711038141,-500.0,0.00058078,120]
[354808047,1740711038151,-500.0,0.00058078,120]
[354808048,1740711038163,-3264.74,0.00060273,120]
[354808049,1740711038172,-1178.86,0.00060273,120]
[354808050,1740711038182,-5503.07,0.00060718,120]
[354808052,1740711038191,-1395.02,0.00060719,120]
[354808053,1740711038200,-500.0,0.00060719,120]
[354808055,1740711038209,-764.49,0.000608,2]
[354808057,1740711038219,-500.0,0.000608,120]
[354808059,1740711038229,-222.15,0.00060807,30]
[354808061,1740711038238,-319.9,0.00060808,30]
[354808063,1740711038247,-266.59,0.00060808,30]
[354808065,1740711038257,-454.29094999,0.00060816,2]
[354808067,1740711038267,-66.1981084,0.00060817,120]
[354808069,1740711038276,-500.0,0.00060817,120]
[354808071,1740711038285,-500.0,0.00060817,120]
[354808073,1740711038294,-6264.52,0.00060817,120]
[354808075,1740711038303,-500.0,0.00060817,120]
[354808077,1740711038313,-15140.25,0.00060817,7]
[354808079,1740711038322,-1016.52,0.00060817,120]
[354808081,1740711038332,-500.0,0.00060817,120]
[354808083,1740711038342,-500.0,0.00060817,120]
[354808085,1740711038351,-500.0,0.00060817,120]
[354808087,1740711038360,-500.0,0.00060818,120]
[354808089,1740711038370,-535.88,0.00060818,120]
[354808091,1740711038379,-500.0,0.00060818,120]
[354808093,1740711038389,-319.22,0.00060818,120]
[354808095,1740711038398,-500.0,0.00060818,120]
[354808097,1740711038410,-586.18,0.00060818,120]
[354808099,1740711038420,-500.0,0.00060818,120]
[354808101,1740711038430,-500.0,0.00060818,120]
[354808103,1740711038440,-500.0,0.00060818,120]
[354808105,1740711038450,-500.0,0.00060818,120]
[354808106,1740711038461,-500.0,0.00060818,120]
[354808108,1740711038471,-689.73,0.00060818,120]
[354808110,1740711038481,-361.71,0.00060818,120]
[354808112,1740711038491,-500.0,0.00060818,120]
[354808116,1740711038501,-477.14,0.00060818,120]
[354808120,1740711038511,-500.0,0.00060818,120]
[354808123,1740711038521,-619.7,0.00060818,120]
[354808126,1740711038530,-354.77,0.00060818,120]
[354808129,1740711038540,-721.81,0.00060818,120]
[354808131,1740711038550,-500.0,0.00060818,120]
[354808133,1740711038559,-500.0,0.00060818,120]
[354808134,1740711038569,-500.0,0.00060818,120]
[354808136,1740711038579,-3541.66,0.00060818,120]
[354808138,1740711038589,-500.0,0.00060818,120]
[354808140,1740711038598,-500.0,0.00060818,120]
[354808142,1740711038609,-422.34,0.00060818,120]
[354808144,1740711038619,-500.0,0.00060818,120]
[354808146,1740711038629,-500.0,0.00060818,120]
[354808147,1740711038638,-702.01,0.00060818,120]
[354808148,1740711038647,-500.0,0.00060818,120]
[354808149,1740711038660,-500.0,0.00060818,120]
[354808150,1740711038670,-500.0,0.00060818,120]
[354808151,1740711038682,-3780.72,0.00060818,120]
[354808152,1740711038692,-500.0,0.00060818,120]
[354808153,1740711038701,-2955.07137045,0.00060818,120]
[354808154,1740711038715,-861.09862955,0.00060818,120]
[354808155,1740711038725,-500.0,0.00060818,120]
[354808156,1740711038735,-500.0,0.00060818,120]
[354808157,1740711038744,-289.3529498,0.00060818,120]
[354808158,1740711038754,-500.0,0.00060818,120]
[354808159,1740711038763,-500.0,0.00060818,120]
[354808160,1740711038774,-23685.79842064,0.00060818,7]
[354808161,1740711038786,-1884.73651482,0.00060818,7]
[354808162,1740711038832,-786.35,0.000608,120]
[354808163,1740711038841,-2554.69506454,0.00060818,7]
[354808164,1740711038851,-2308.32,0.00060818,120]
[354808165,1740711038859,-684.28,0.00060818,120]
[354808166,1740711038868,-500.0,0.00060818,120]
[354808167,1740711038878,-200.47,0.00060818,120]
[354808168,1740711038887,-500.0,0.00060818,120]
[354808169,1740711038896,-500.0,0.00060818,120]
[354808170,1740711038906,-500.0,0.00060818,120]
[354808171,1740711038915,-725.19,0.00060818,120]
[354808172,1740711038923,-500.0,0.00060818,120]
[354808173,1740711038933,-500.0,0.0006082,120]
[354808174,1740711038942,-500.0,0.0006082,120]
[354808175,1740711038951,-500.0,0.0006082,120]
[354808176,1740711038960,-500.0,0.0006082,120]
[354808177,1740711038970,-500.0,0.0006082,120]
[354808178,1740711038979,-500.0,0.0006082,120]
[354808179,1740711038989,-500.0,0.0006082,120]
[354808180,1740711038999,-500.0,0.0006082,120]
[354808181,1740711039009,-500.0,0.0006082,120]
[354808182,1740711039019,-500.0,0.0006082,120]
[354808183,1740711039028,-500.0,0.0006082,120]
[354808184,1740711039038,-500.0,0.0006082,120]
[354808185,1740711039047,-500.0,0.0006082,120]
[354808186,1740711039056,-505.71525188,0.0006082,120]
[354808187,1740711039066,-432.56,0.0006082,120]
[354808188,1740711039075,-533.15150847,0.0006082,120]
[354808189,1740711039085,-500.0,0.0006082,120]
[354808190,1740711039094,-500.0,0.0006082,120]
[354808191,1740711039103,-500.0,0.0006082,120]
[354808192,1740711039112,-504.99898215,0.0006082,120]
[354808193,1740711039121,-3354.16,0.0006082,120]
[354808194,1740711039131,-547.97,0.0006082,120]
[354808195,1740711039140,-500.0,0.0006082,120]
[354808196,1740711039149,-645.22,0.00060821,105]
[354808197,1740711039162,-1000.0,0.00060852,15]
[354808198,1740711039171,-1000.0,0.00060852,15]
[354808199,1740711039255,-1000.0,0.00060852,14]
[354808200,1740711039265,-3661.29,0.000609,30]
[354808201,1740711039274,-1431.26,0.000609,30]
[354808202,1740711039284,-274.0,0.00061,120]
[354808203,1740711039294,-274.0,0.00061,120]
[354808204,1740711039303,-645.22,0.00061369,110]
[354808205,1740711039312,-158.0,0.000615,120]
[354808206,1740711039322,-46581.45815789,0.000616,30]
[354808207,1740711039335,-17887.37184211,0.000616,30]
[354808208,1740711039344,-324.32,0.000616,30]
[354808209,1740711039354,-7708.0,0.000617,120]
[354808210,1740711039363,-645.22,0.00061917,115]
[354808211,1740711039373,-1792.35,0.00062,30]
[354808212,1740711039382,-500.0,0.00062221,15]
[354808213,1740711039392,-645.22,0.00062465,120]
[354808214,1740711039402,-1634.5682,0.00062535,120]
[354808215,1740711039414,-500.0,0.00062535,30]
[354808216,1740711039424,-500.0,0.00062535,120]
[354808217,1740711039433,-21911.0,0.00063,120]
[354808218,1740711039442,-274.0,0.00063,120]
[354808219,1740711039452,-274.0,0.00063,120]
[354808220,1740711039461,-165.0,0.00063,120]
[354808221,1740711039471,-645.22,0.00063013,120]
[354808222,1740711039480,-500.0,0.00063013,120]
[354808223,1740711039489,-512.41970279,0.00063013,120]
[354808224,1740711039499,-500.0,0.00063013,120]
[354808225,1740711039507,-1220.83,0.00063013,120]
[354808226,1740711039517,-3264.74,0.00063013,120]
[354808227,1740711039526,-1178.86,0.00063013,120]
[354808228,1740711039536,-1624.99,0.00063458,120]
[354808229,1740711039546,-560.65,0.00063458,120]
[354808230,1740711039555,-1395.02,0.00063458,120]
[354808231,1740711039564,-634.0,0.00063458,120]
[354808232,1740711039574,-500.0,0.00063482,120]
[354808233,1740711039584,-1000.0,0.00063552,15]
[354808234,1740711039594,-1000.0,0.00063552,14]
[354808235,1740711039603,-1000.0,0.00063552,15]
[354808236,1740711039614,-1000.0,0.00063552,14]
[354808237,1740711039623,-1000.0,0.00063552,14]
[354808238,1740711039632,-500.0,0.00063557,120]
[354808239,1740711039642,-500.0,0.00063557,120]
[354808240,1740711039651,-462.04843187,0.00063557,120]
[354808241,1740711039662,-586.18,0.00063557,120]
[354808242,1740711039671,-500.0,0.00063557,120]
[354808243,1740711039682,-500.0,0.00063557,120]
[354808244,1740711039691,-500.0,0.00063557,120]
[354808245,1740711039703,-689.73,0.00063557,120]
[354808246,1740711039713,-721.81,0.00063557,120]
[354808248,1740711039722,-500.0,0.00063557,120]
[354808249,1740711039732,-3541.66,0.00063557,120]
[354808250,1740711039742,-500.0,0.00063557,120]
[354808251,1740711039751,-1916.66,0.00063557,120]
[354808252,1740711039760,-500.0,0.00063557,120]
[354808253,1740711039770,-577.20622035,0.00063557,120]
[354808255,1740711039779,-500.0,0.00063557,120]
[354808256,1740711039788,-500.0,0.00063557,120]
[354808257,1740711039797,-500.0,0.00063557,120]
[354808258,1740711039807,-1371.64,0.00063557,120]
[354808259,1740711039816,-357.26890389,0.00063557,120]
[354808260,1740711039825,-3093.38,0.00063557,120]
[354808261,1740711039834,-745.08,0.00063557,120]
[354808262,1740711039844,-500.0,0.00063557,120]
[354808263,1740711039853,-500.0,0.00063557,120]
[354808264,1740711039864,-1141.61,0.00063557,120]
[354808266,1740711039873,-585.52,0.00063557,120]
[354808267,1740711039881,-500.0,0.00063557,120]
[354808268,1740711039890,-500.0,0.00063557,120]
[354808269,1740711039904,-2121.8,0.00063557,120]
[354808270,1740711039922,-500.0,0.00063557,120]
[354808271,1740711039936,-799.49,0.00063557,120]
[354808272,1740711039951,-500.0,0.00063557,120]
[354808273,1740711039967,-1492.81,0.00063557,120]
[354808275,1740711039983,-762.94,0.00063557,120]
[354808276,1740711039997,-500.0,0.00063557,120]
[354808277,1740711040013,-500.0,0.00063557,120]
[354808278,1740711040028,-500.0,0.00063557,120]
[354808279,1740711040041,-500.0,0.00063557,120]
[354808280,1740711040056,-725.19,0.00063557,120]
[354808281,1740711040072,-325.54,0.00063557,120]
[354808282,1740711040084,-500.0,0.00063557,120]
[354808285,1740711040097,-6264.52,0.00063557,120]
[354808287,1740711040111,-500.0,0.00063557,120]
[354808290,1740711040126,-15140.25,0.00063557,7]
[354808292,1740711040141,-1016.52,0.00063557,120]
[354808295,1740711040158,-500.0,0.00063557,120]
[354808298,1740711040176,-387.40198149,0.00063557,120]
[354808300,1740711040188,-500.0,0.00063557,120]
[354808302,1740711040200,-500.0,0.00063557,120]
[354808305,1740711040217,-535.88,0.00063558,120]
[354808307,1740711040230,-500.0,0.00063558,120]
[354808310,1740711040243,-500.0,0.00063558,120]
[354808312,1740711040257,-500.0,0.00063558,120]
[354808315,1740711040271,-500.0,0.00063558,120]
[354808317,1740711040282,-619.7,0.00063558,120]
[354808320,1740711040297,-500.0,0.00063558,120]
[354808322,1740711040312,-500.0,0.00063558,120]
[354808325,1740711040325,-500.0,0.00063558,120]
[354808327,1740711040339,-500.0,0.00063558,120]